[Event "*** Qualifier 1: Titled Tuesday 3|2 Blitz"]
[Site "Chess.com"]
[Date "2017.04.04"]
[Round "10"]
[White "biostatistician"]
[Black "Usurpov"]
[Result "0-1"]
[WhiteElo "2450"]
[BlackElo "2352"]
[TimeControl "180+2"]
[EndTime "15:19:09 PDT"]
[Termination "Usurpov won by resignation"]

1. d4 {[%clk 0:03:02]} 1... Nf6 {[%clk 0:03:00.5]} 2. Nf3 {[%clk 0:03:03.3]}
2... g6 {[%clk 0:03:01.8]} 3. c4 {[%clk 0:03:04.8]} 3... Bg7 {[%clk 0:03:03.1]}
4. Nc3 {[%clk 0:03:06.3]} 4... d5 {[%clk 0:03:04.6]} 5. cxd5 {[%clk 0:03:07]}
5... Nxd5 {[%clk 0:03:06.5]} 6. e4 {[%clk 0:03:08.5]} 6... Nxc3 {[%clk
0:03:07.6]} 7. bxc3 {[%clk 0:03:10.4]} 7... c5 {[%clk 0:03:07.9]} 8. Be3 {[%clk
0:03:11.5]} 8... Nc6 {[%clk 0:03:01.2]} 9. Rc1 {[%clk 0:03:05.5]} 9... Qa5
{[%clk 0:02:54.8]} 10. Qd2 {[%clk 0:03:05.6]} 10... cxd4 {[%clk 0:02:47.6]} 11.
cxd4 {[%clk 0:03:07.5]} 11... O-O {[%clk 0:02:47.8]} 12. Qxa5 {[%clk 0:03:03.9]}
12... Nxa5 {[%clk 0:02:49.7]} 13. Bd3 {[%clk 0:02:59.9]} 13... b6 {[%clk
0:02:33.4]} 14. Rc7 {[%clk 0:02:57.5]} 14... e6 {[%clk 0:02:29.1]} 15. Ke2
{[%clk 0:02:58]} 15... Bb7 {[%clk 0:02:26.6]} 16. Rhc1 {[%clk 0:02:57.8]} 16...
Rac8 {[%clk 0:02:25.1]} 17. Bf4 {[%clk 0:02:41.2]} 17... Rxc7 {[%clk 0:02:20.1]}
18. Rxc7 {[%clk 0:02:43.1]} 18... Rc8 {[%clk 0:02:19.6]} 19. Rxc8+ {[%clk
0:02:43.4]} 19... Bxc8 {[%clk 0:02:20.7]} 20. Ke3 {[%clk 0:02:45.1]} 20... f6
{[%clk 0:02:10.8]} 21. Bd6 {[%clk 0:02:31.1]} 21... Bf8 {[%clk 0:02:09.2]} 22.
Bxf8 {[%clk 0:02:22]} 22... Kxf8 {[%clk 0:02:11.1]} 23. e5 {[%clk 0:02:23.4]}
23... Bb7 {[%clk 0:02:00.6]} 24. Be4 {[%clk 0:01:54.9]} 24... Nc4+ {[%clk
0:01:44]} 25. Kd3 {[%clk 0:01:51.4]} 25... Nb2+ {[%clk 0:01:39.6]} 26. Kc2
{[%clk 0:01:33.1]} 26... Bxe4+ {[%clk 0:01:39.3]} 27. Kxb2 {[%clk 0:01:34.4]}
27... Bxf3 {[%clk 0:01:36]} 28. gxf3 {[%clk 0:01:36.3]} 28... fxe5 {[%clk
0:01:37.1]} 29. dxe5 {[%clk 0:01:37.5]} 29... Ke7 {[%clk 0:01:24.6]} 30. Kc3
{[%clk 0:01:37.2]} 30... Kd7 {[%clk 0:01:25.7]} 31. Kd4 {[%clk 0:00:52.8]} 31...
Kc6 {[%clk 0:01:24.4]} 32. h4 {[%clk 0:00:53.1]} 32... b5 {[%clk 0:01:08.1]} 33.
Ke4 {[%clk 0:00:49.7]} 33... a5 {[%clk 0:01:06.8]} 34. Kf4 {[%clk 0:00:50.4]}
34... h6 {[%clk 0:01:01.1]} 35. Kg4 {[%clk 0:00:46.7]} 35... Kd5 {[%clk
0:00:56.4]} 36. f4 {[%clk 0:00:47.6]} 36... b4 {[%clk 0:00:48.7]} 37. h5 {[%clk
0:00:48.4]} 37... gxh5+ {[%clk 0:00:49.7]} 38. Kxh5 {[%clk 0:00:50.3]} 38... a4
{[%clk 0:00:50.5]} 39. Kxh6 {[%clk 0:00:50.2]} 39... b3 {[%clk 0:00:51.7]} 40.
axb3 {[%clk 0:00:50.4]} 40... axb3 {[%clk 0:00:53.6]} 0-1

[Event "*** Qualifier 1: Titled Tuesday 3|2 Blitz"]
[Site "Chess.com"]
[Date "2017.04.04"]
[Round "10"]
[White "Schemato"]
[Black "iaraldinho"]
[Result "0-1"]
[WhiteElo "2246"]
[BlackElo "2388"]
[TimeControl "180+2"]
[EndTime "15:19:20 PDT"]
[Termination "iaraldinho won by resignation"]

1. c4 {[%clk 0:03:02]} 1... f5 {[%clk 0:02:59.8]} 2. g3 {[%clk 0:03:02.5]} 2...
Nf6 {[%clk 0:03:01.1]} 3. Bg2 {[%clk 0:03:03.7]} 3... g6 {[%clk 0:03:02.7]} 4.
Nc3 {[%clk 0:03:02.2]} 4... Bg7 {[%clk 0:03:04.2]} 5. d3 {[%clk 0:03:03.6]} 5...
O-O {[%clk 0:03:05.7]} 6. e4 {[%clk 0:03:04.8]} 6... d6 {[%clk 0:03:06.6]} 7.
Nge2 {[%clk 0:03:05.2]} 7... c6 {[%clk 0:03:07.9]} 8. O-O {[%clk 0:03:04.3]}
8... e5 {[%clk 0:03:09]} 9. exf5 {[%clk 0:03:00.3]} 9... Bxf5 {[%clk 0:03:00.2]}
10. d4 {[%clk 0:03:01.1]} 10... e4 {[%clk 0:03:01.7]} 11. d5 {[%clk 0:02:58.3]}
11... Qe7 {[%clk 0:03:01.4]} 12. h3 {[%clk 0:02:50.1]} 12... h5 {[%clk
0:02:53.5]} 13. Bg5 {[%clk 0:02:48.8]} 13... Nbd7 {[%clk 0:02:54.4]} 14. Qd2
{[%clk 0:02:42.5]} 14... Rae8 {[%clk 0:02:53.7]} 15. Rad1 {[%clk 0:02:36.2]}
15... c5 {[%clk 0:02:46.2]} 16. Rde1 {[%clk 0:02:32.5]} 16... Ne5 {[%clk
0:02:43.7]} 17. b3 {[%clk 0:02:31.4]} 17... Qd7 {[%clk 0:02:40.4]} 18. Nf4
{[%clk 0:02:19.1]} 18... Nf3+ {[%clk 0:02:27.5]} 19. Bxf3 {[%clk 0:02:18.8]}
19... exf3 {[%clk 0:02:29.4]} 20. Kh2 {[%clk 0:02:00.5]} 20... Nh7 {[%clk
0:02:23.7]} 21. h4 {[%clk 0:01:50.9]} 21... Nxg5 {[%clk 0:02:21.8]} 22. hxg5
{[%clk 0:01:51.6]} 22... Be5 {[%clk 0:02:21.8]} 23. Ne4 {[%clk 0:01:43.5]} 23...
Kg7 {[%clk 0:01:51]} 24. Ne6+ {[%clk 0:01:28.1]} 24... Bxe6 {[%clk 0:01:45.2]}
25. dxe6 {[%clk 0:01:30]} 25... Qxe6 {[%clk 0:01:24.1]} 26. Nf6 {[%clk
0:01:30.3]} 26... h4 {[%clk 0:01:24.4]} 27. Nxe8+ {[%clk 0:01:12.6]} 27... Rxe8
{[%clk 0:01:25.5]} 28. Qd5 {[%clk 0:00:37.3]} 28... hxg3+ {[%clk 0:01:11.5]} 29.
fxg3 {[%clk 0:00:37.9]} 29... Rh8+ {[%clk 0:01:11.6]} 30. Kg1 {[%clk 0:00:38.1]}
30... Rh1+ {[%clk 0:01:03.3]} 31. Kf2 {[%clk 0:00:36]} 31... Rh2+ {[%clk
0:00:36.8]} 32. Kg1 {[%clk 0:00:15.3]} 32... Rg2+ {[%clk 0:00:36.8]} 0-1

[Event "*** Qualifier 1: Titled Tuesday 3|2 Blitz"]
[Site "Chess.com"]
[Date "2017.04.04"]
[Round "10"]
[White "Bugcrusher"]
[Black "Zhani-Z"]
[Result "0-1"]
[WhiteElo "2442"]
[BlackElo "2411"]
[TimeControl "180+2"]
[EndTime "15:19:21 PDT"]
[Termination "Zhani-Z won by resignation"]

1. d4 {[%clk 0:03:02]} 1... e6 {[%clk 0:03:00.2]} 2. e4 {[%clk 0:02:58.8]} 2...
d5 {[%clk 0:03:00.4]} 3. e5 {[%clk 0:02:59.4]} 3... c5 {[%clk 0:03:01]} 4. c3
{[%clk 0:02:58.5]} 4... Qb6 {[%clk 0:03:01.2]} 5. Nf3 {[%clk 0:02:58.9]} 5...
Nc6 {[%clk 0:03:01.9]} 6. Na3 {[%clk 0:02:59.6]} 6... Nh6 {[%clk 0:02:45.3]} 7.
Bd3 {[%clk 0:02:50.2]} 7... cxd4 {[%clk 0:02:40.6]} 8. cxd4 {[%clk 0:02:49.5]}
8... Nb4 {[%clk 0:02:40.1]} 9. Bb1 {[%clk 0:02:34.5]} 9... Qa6 {[%clk
0:02:35.6]} 10. Bxh6 {[%clk 0:02:13.2]} 10... gxh6 {[%clk 0:02:35.3]} 11. Qd2
{[%clk 0:02:14.3]} 11... Bd7 {[%clk 0:02:29.2]} 12. Nc2 {[%clk 0:02:04.5]} 12...
Nd3+ {[%clk 0:02:29.3]} 13. Kf1 {[%clk 0:01:28.3]} 13... Nxe5+ {[%clk
0:02:26.5]} 14. Ke1 {[%clk 0:01:18.8]} 14... Nd3+ {[%clk 0:02:16.3]} 15. Kf1
{[%clk 0:01:18]} 15... Ne5+ {[%clk 0:02:07.9]} 16. Ke1 {[%clk 0:01:18.5]} 16...
Nxf3+ {[%clk 0:02:09]} 17. gxf3 {[%clk 0:01:18.9]} 17... Rc8 {[%clk 0:02:09.8]}
18. a3 {[%clk 0:01:16.9]} 18... Ba4 {[%clk 0:02:04.6]} 19. Ne3 {[%clk
0:01:16.7]} 19... Rg8 {[%clk 0:01:50.3]} 20. Ng4 {[%clk 0:01:10.3]} 20... Be7
{[%clk 0:01:47]} 21. Bd3 {[%clk 0:00:54.8]} 21... Qb6 {[%clk 0:01:47.2]} 22. Ke2
{[%clk 0:00:49]} 22... h5 {[%clk 0:01:12]} 23. Ne5 {[%clk 0:00:42.7]} 23... f6
{[%clk 0:00:53]} 24. Bxh7 {[%clk 0:00:36.5]} 24... Rg7 {[%clk 0:00:48.5]} 25.
Qh6 {[%clk 0:00:25.4]} 25... Rxh7 {[%clk 0:00:49.4]} 26. Qg6+ {[%clk 0:00:15.4]}
26... Kd8 {[%clk 0:00:50.3]} 27. Qg8+ {[%clk 0:00:14.8]} 27... Be8 {[%clk
0:00:51.8]} 28. Qxh7 {[%clk 0:00:14.6]} 28... fxe5 {[%clk 0:00:52]} 29. dxe5
{[%clk 0:00:16]} 29... Qxb2+ {[%clk 0:00:52]} 30. Kf1 {[%clk 0:00:10.6]} 30...
Qxa1+ {[%clk 0:00:52.3]} 31. Kg2 {[%clk 0:00:12]} 31... Qxe5 {[%clk 0:00:53.8]}
32. Rd1 {[%clk 0:00:11.8]} 32... Bd6 {[%clk 0:00:50.2]} 33. Kf1 {[%clk
0:00:08.6]} 33... Bb5+ {[%clk 0:00:49.9]} 0-1

[Event "*** Qualifier 1: Titled Tuesday 3|2 Blitz"]
[Site "Chess.com"]
[Date "2017.04.04"]
[Round "10"]
[White "Swarajan"]
[Black "nihalsarin"]
[Result "0-1"]
[WhiteElo "2001"]
[BlackElo "2498"]
[TimeControl "180+2"]
[EndTime "15:20:07 PDT"]
[Termination "nihalsarin won by checkmate"]

1. d4 {[%clk 0:02:58.6]} 1... f5 {[%clk 0:02:57.5]} 2. c4 {[%clk 0:03:00]} 2...
Nf6 {[%clk 0:02:57.8]} 3. Nf3 {[%clk 0:03:00.5]} 3... e6 {[%clk 0:02:58.9]} 4.
g3 {[%clk 0:03:01]} 4... d5 {[%clk 0:02:59.3]} 5. Bg2 {[%clk 0:03:02.1]} 5... c6
{[%clk 0:03:01]} 6. O-O {[%clk 0:03:03.2]} 6... Bd6 {[%clk 0:03:01.9]} 7. Nc3
{[%clk 0:03:03.8]} 7... O-O {[%clk 0:03:01.9]} 8. c5 {[%clk 0:03:04.7]} 8... Bc7
{[%clk 0:03:02]} 9. b4 {[%clk 0:03:05.8]} 9... Ne4 {[%clk 0:02:58.3]} 10. Qc2
{[%clk 0:03:06.2]} 10... a5 {[%clk 0:02:53]} 11. b5 {[%clk 0:03:06.7]} 11...
Nxc3 {[%clk 0:02:52.7]} 12. Qxc3 {[%clk 0:03:07.7]} 12... cxb5 {[%clk
0:02:53.5]} 13. Bg5 {[%clk 0:02:59.6]} 13... Qe8 {[%clk 0:02:49.6]} 14. Bf4
{[%clk 0:02:52.7]} 14... Bxf4 {[%clk 0:02:50]} 15. gxf4 {[%clk 0:02:53.8]} 15...
Bd7 {[%clk 0:02:43]} 16. Rab1 {[%clk 0:02:51.3]} 16... b4 {[%clk 0:02:40.2]} 17.
Qe3 {[%clk 0:02:51.4]} 17... Nc6 {[%clk 0:02:16.8]} 18. Kh1 {[%clk 0:02:48.3]}
18... Rf6 {[%clk 0:02:15.5]} 19. Ng5 {[%clk 0:02:40.2]} 19... Rh6 {[%clk
0:02:05.4]} 20. Qg3 {[%clk 0:02:40]} 20... Nxd4 {[%clk 0:02:04.1]} 21. e3 {[%clk
0:02:39]} 21... Ne2 {[%clk 0:02:03.5]} 22. Qf3 {[%clk 0:02:38.8]} 22... Nc3
{[%clk 0:02:04.5]} 23. Rbc1 {[%clk 0:02:37.7]} 23... Bc6 {[%clk 0:01:58.5]} 24.
Qg3 {[%clk 0:02:37.9]} 24... Ne2 {[%clk 0:01:55.9]} 25. Qf3 {[%clk 0:02:37.1]}
25... Nxc1 {[%clk 0:01:56.8]} 26. Rxc1 {[%clk 0:02:36.8]} 26... d4 {[%clk
0:01:58.5]} 27. e4 {[%clk 0:02:36.7]} 27... fxe4 {[%clk 0:01:57.2]} 28. Qg4
{[%clk 0:02:36.1]} 28... e3 {[%clk 0:01:55.4]} 29. fxe3 {[%clk 0:02:34.4]} 29...
dxe3 {[%clk 0:01:56.5]} 30. Rd1 {[%clk 0:02:32.5]} 30... Rd8 {[%clk 0:01:53]}
31. Bxc6 {[%clk 0:02:27.9]} 31... Qxc6+ {[%clk 0:01:46.4]} 32. Kg1 {[%clk
0:02:25.2]} 32... Rd5 {[%clk 0:01:42.2]} 33. Re1 {[%clk 0:02:10.1]} 33... Rd2
{[%clk 0:01:21.1]} 34. h3 {[%clk 0:01:48]} 34... Qxc5 {[%clk 0:01:13]} 35. Nxe6
{[%clk 0:01:43]} 35... Qc3 {[%clk 0:01:13.7]} 36. Ng5 {[%clk 0:01:37.8]} 36...
Rf6 {[%clk 0:00:52.9]} 37. Qh5 {[%clk 0:01:30]} 37... h6 {[%clk 0:00:39.6]} 38.
Qe8+ {[%clk 0:01:27.8]} 38... Rf8 {[%clk 0:00:39.9]} 39. Qe6+ {[%clk 0:01:26.1]}
39... Kh8 {[%clk 0:00:41.5]} 40. Nf7+ {[%clk 0:01:16.1]} 40... Kh7 {[%clk
0:00:38.8]} 41. Ne5 {[%clk 0:01:03]} 41... Rd6 {[%clk 0:00:38]} 42. Qxd6 {[%clk
0:00:53.3]} 42... Qxe1+ {[%clk 0:00:38.7]} 43. Kg2 {[%clk 0:00:53.8]} 43... Qf2+
{[%clk 0:00:40.6]} 44. Kh1 {[%clk 0:00:53.3]} 44... Qf1+ {[%clk 0:00:42.5]} 45.
Kh2 {[%clk 0:00:53.3]} 45... Qxf4+ {[%clk 0:00:44.4]} 46. Kg2 {[%clk 0:00:52.9]}
46... Qf2+ {[%clk 0:00:44.1]} 47. Kh1 {[%clk 0:00:52.9]} 47... Qf1+ {[%clk
0:00:43.2]} 48. Kh2 {[%clk 0:00:53.7]} 48... Rf2+ {[%clk 0:00:45.1]} 49. Kg3
{[%clk 0:00:54.4]} 49... Qg2+ {[%clk 0:00:47]} 50. Kh4 {[%clk 0:00:55]} 50...
Qg5# {[%clk 0:00:48.9]} 0-1

[Event "*** Qualifier 1: Titled Tuesday 3|2 Blitz"]
[Site "Chess.com"]
[Date "2017.04.04"]
[Round "10"]
[White "SergeiAza"]
[Black "PelinGorki"]
[Result "1-0"]
[WhiteElo "2637"]
[BlackElo "2395"]
[TimeControl "180+2"]
[EndTime "15:20:22 PDT"]
[Termination "SergeiAza won by resignation"]

1. e4 {[%clk 0:03:02]} 1... d6 {[%clk 0:02:59.5]} 2. d4 {[%clk 0:03:02.1]} 2...
Nf6 {[%clk 0:03:00.7]} 3. Nc3 {[%clk 0:03:02.6]} 3... c6 {[%clk 0:03:02]} 4. Nf3
{[%clk 0:02:57.9]} 4... Bg4 {[%clk 0:03:02.4]} 5. Be2 {[%clk 0:02:56.5]} 5... e6
{[%clk 0:03:02.8]} 6. O-O {[%clk 0:02:51.3]} 6... Be7 {[%clk 0:03:03.6]} 7. a4
{[%clk 0:02:49.7]} 7... d5 {[%clk 0:03:04.7]} 8. e5 {[%clk 0:02:49]} 8... Nfd7
{[%clk 0:03:05.3]} 9. Ne1 {[%clk 0:02:49.2]} 9... Bxe2 {[%clk 0:03:03.6]} 10.
Nxe2 {[%clk 0:02:49.6]} 10... c5 {[%clk 0:03:04.8]} 11. c3 {[%clk 0:02:50.3]}
11... Nc6 {[%clk 0:03:06.1]} 12. f4 {[%clk 0:02:45.1]} 12... g6 {[%clk
0:03:07.3]} 13. Be3 {[%clk 0:02:39.8]} 13... Qc7 {[%clk 0:03:07.9]} 14. b3
{[%clk 0:02:30.3]} 14... O-O-O {[%clk 0:03:08.7]} 15. Nd3 {[%clk 0:02:28.4]}
15... Na5 {[%clk 0:03:09.1]} 16. Bf2 {[%clk 0:01:49.1]} 16... c4 {[%clk
0:03:05.7]} 17. bxc4 {[%clk 0:01:48.5]} 17... Nxc4 {[%clk 0:03:07.6]} 18. a5
{[%clk 0:01:42.3]} 18... Nxa5 {[%clk 0:03:00.1]} 19. Qa4 {[%clk 0:01:41.1]}
19... b6 {[%clk 0:03:01.1]} 20. Rfb1 {[%clk 0:01:36.1]} 20... Nb8 {[%clk
0:03:00.8]} 21. Nc5 {[%clk 0:01:06.4]} 21... Nbc6 {[%clk 0:02:44.8]} 22. Na6
{[%clk 0:01:06.2]} 22... Qd7 {[%clk 0:02:42.6]} 23. Nc1 {[%clk 0:01:03.7]} 23...
Nc4 {[%clk 0:02:43.2]} 24. Nd3 {[%clk 0:01:01.9]} 24... N6a5 {[%clk 0:02:44]}
25. Qa2 {[%clk 0:00:57.9]} 25... h5 {[%clk 0:02:42.1]} 26. Nb2 {[%clk
0:00:51.7]} 26... h4 {[%clk 0:02:41.6]} 27. h3 {[%clk 0:00:51.4]} 27... Qb7
{[%clk 0:02:31.8]} 28. Nxc4 {[%clk 0:00:48.7]} 28... Nxc4 {[%clk 0:02:33.7]} 29.
Nc5 {[%clk 0:00:47.3]} 29... Bxc5 {[%clk 0:02:29.6]} 30. dxc5 {[%clk 0:00:48.1]}
30... g5 {[%clk 0:01:51.4]} 31. Qxa7 {[%clk 0:00:43.5]} 31... gxf4 {[%clk
0:01:44.2]} 32. cxb6 {[%clk 0:00:42.6]} 32... f3 {[%clk 0:01:39.8]} 33. Qxb7+
{[%clk 0:00:33.4]} 33... Kxb7 {[%clk 0:01:41.7]} 34. Ra7+ {[%clk 0:00:34.3]}
34... Kb8 {[%clk 0:01:41.4]} 35. b7 {[%clk 0:00:32.5]} 35... fxg2 {[%clk
0:01:31.7]} 36. Kxg2 {[%clk 0:00:29]} 36... Rhg8+ {[%clk 0:01:30.6]} 37. Kh2
{[%clk 0:00:25.6]} 37... d4 {[%clk 0:00:38.9]} 38. Bxd4 {[%clk 0:00:24.3]} 38...
Rge8 {[%clk 0:00:10.9]} 39. Rb4 {[%clk 0:00:21.1]} 39... Rxd4 {[%clk 0:00:07.6]}
40. Ra8+ {[%clk 0:00:21.2]} 40... Kc7 {[%clk 0:00:09]} 41. Rxe8 {[%clk
0:00:21.8]} 41... Rd2+ {[%clk 0:00:10.4]} 42. Kg1 {[%clk 0:00:22.3]} 42... Rd1+
{[%clk 0:00:11.2]} 43. Kf2 {[%clk 0:00:23.2]} 43... Rd2+ {[%clk 0:00:09]} 44.
Ke1 {[%clk 0:00:23.8]} 1-0

[Event "*** Qualifier 1: Titled Tuesday 3|2 Blitz"]
[Site "Chess.com"]
[Date "2017.04.04"]
[Round "10"]
[White "scrapnel"]
[Black "PowerThinking2650"]
[Result "1-0"]
[WhiteElo "2275"]
[BlackElo "2177"]
[TimeControl "180+2"]
[EndTime "15:20:26 PDT"]
[Termination "scrapnel won by resignation"]

1. Nf3 {[%clk 0:02:58.1]} 1... Nf6 {[%clk 0:03:00.7]} 2. c4 {[%clk 0:02:58.5]}
2... g6 {[%clk 0:03:01.4]} 3. b3 {[%clk 0:02:58.7]} 3... Bg7 {[%clk 0:03:02]} 4.
Bb2 {[%clk 0:03:00.2]} 4... O-O {[%clk 0:03:03]} 5. g3 {[%clk 0:03:01.3]} 5...
d6 {[%clk 0:03:04.2]} 6. d4 {[%clk 0:03:00.8]} 6... c5 {[%clk 0:03:02.5]} 7. Bg2
{[%clk 0:03:00.1]} 7... Ne4 {[%clk 0:02:59.6]} 8. O-O {[%clk 0:03:00.3]} 8...
Nc6 {[%clk 0:02:59.2]} 9. e3 {[%clk 0:02:52]} 9... cxd4 {[%clk 0:02:54.2]} 10.
Nxd4 {[%clk 0:02:50.1]} 10... Nxd4 {[%clk 0:02:44.1]} 11. exd4 {[%clk
0:02:46.7]} 11... d5 {[%clk 0:02:35]} 12. cxd5 {[%clk 0:02:39.4]} 12... Nd6
{[%clk 0:02:26.1]} 13. Nc3 {[%clk 0:02:30]} 13... Bf5 {[%clk 0:02:25.2]} 14. Re1
{[%clk 0:02:29.1]} 14... Rc8 {[%clk 0:02:22.2]} 15. Rc1 {[%clk 0:02:27.9]} 15...
Qd7 {[%clk 0:02:22.1]} 16. Qd2 {[%clk 0:02:23.5]} 16... Rfe8 {[%clk 0:02:14.3]}
17. Na4 {[%clk 0:02:17.4]} 17... b6 {[%clk 0:02:12]} 18. Rc6 {[%clk 0:02:14.9]}
18... Bh3 {[%clk 0:02:05.5]} 19. Bh1 {[%clk 0:02:07.7]} 19... Nf5 {[%clk
0:01:57]} 20. Qd3 {[%clk 0:01:54.4]} 20... e6 {[%clk 0:01:43.3]} 21. dxe6 {[%clk
0:01:46.7]} 21... Rxe6 {[%clk 0:01:39.2]} 22. Rexe6 {[%clk 0:01:26.4]} 22...
fxe6 {[%clk 0:01:31.9]} 23. Qc4 {[%clk 0:01:15.9]} 23... Rxc6 {[%clk 0:01:26.3]}
24. Bxc6 {[%clk 0:01:13]} 24... Qd6 {[%clk 0:01:14.1]} 25. Bg2 {[%clk
0:01:05.5]} 25... Bxg2 {[%clk 0:01:01.2]} 26. Kxg2 {[%clk 0:01:06.1]} 26... Bxd4
{[%clk 0:00:44.4]} 27. Nc3 {[%clk 0:01:01.2]} 27... Qe5 {[%clk 0:00:41.2]} 28.
Qc8+ {[%clk 0:00:57.2]} 28... Kg7 {[%clk 0:00:41.9]} 29. Qb7+ {[%clk 0:00:53.6]}
29... Kh6 {[%clk 0:00:41.9]} 30. Bc1+ {[%clk 0:00:52.3]} 30... g5 {[%clk
0:00:37.5]} 31. Ne4 {[%clk 0:00:50.2]} 31... Qd5 {[%clk 0:00:21]} 32. Qxd5
{[%clk 0:00:44.3]} 32... exd5 {[%clk 0:00:22]} 33. Nxg5 {[%clk 0:00:44.9]} 33...
Kg6 {[%clk 0:00:23.2]} 34. g4 {[%clk 0:00:37.5]} 34... Nd6 {[%clk 0:00:18.6]}
35. f4 {[%clk 0:00:38.3]} 35... Bc3 {[%clk 0:00:18.2]} 36. f5+ {[%clk
0:00:38.3]} 36... Nxf5 {[%clk 0:00:17.8]} 37. gxf5+ {[%clk 0:00:38.7]} 37...
Kxf5 {[%clk 0:00:19.7]} 38. Kf3 {[%clk 0:00:40]} 38... h6 {[%clk 0:00:19.1]} 39.
Nh3 {[%clk 0:00:40.8]} 39... d4 {[%clk 0:00:20]} 40. Nf2 {[%clk 0:00:41.5]}
40... Ke5 {[%clk 0:00:19]} 41. Bxh6 {[%clk 0:00:40.9]} 41... Kd5 {[%clk
0:00:18.7]} 42. Nd3 {[%clk 0:00:41.4]} 42... a5 {[%clk 0:00:18.8]} 43. h4 {[%clk
0:00:41.7]} 43... b5 {[%clk 0:00:19.3]} 44. h5 {[%clk 0:00:42.7]} 44... a4
{[%clk 0:00:20.3]} 45. Bc1 {[%clk 0:00:41.1]} 45... axb3 {[%clk 0:00:20.8]} 46.
axb3 {[%clk 0:00:42.1]} 46... Ba5 {[%clk 0:00:21.4]} 47. h6 {[%clk 0:00:42.9]}
47... Bd8 {[%clk 0:00:22]} 48. Nf4+ {[%clk 0:00:36.4]} 48... Ke5 {[%clk
0:00:21.3]} 49. Nh5 {[%clk 0:00:34.3]} 1-0

[Event "*** Qualifier 1: Titled Tuesday 3|2 Blitz"]
[Site "Chess.com"]
[Date "2017.04.04"]
[Round "10"]
[White "dhanushbharadwaj"]
[Black "Rating-Schmating"]
[Result "0-1"]
[WhiteElo "2405"]
[BlackElo "2247"]
[TimeControl "180+2"]
[EndTime "15:20:32 PDT"]
[Termination "Rating-Schmating won by checkmate"]

1. Nf3 {[%clk 0:03:02]} 1... e6 {[%clk 0:02:59.9]} 2. c4 {[%clk 0:03:00.9]} 2...
Nf6 {[%clk 0:02:59.8]} 3. b3 {[%clk 0:03:01.4]} 3... c5 {[%clk 0:03:00.1]} 4. g3
{[%clk 0:03:02.5]} 4... b6 {[%clk 0:03:00.7]} 5. Bg2 {[%clk 0:03:03.5]} 5... Bb7
{[%clk 0:03:01.7]} 6. O-O {[%clk 0:03:04.8]} 6... d6 {[%clk 0:03:02.7]} 7. Bb2
{[%clk 0:03:06.3]} 7... Nbd7 {[%clk 0:03:03.8]} 8. Re1 {[%clk 0:03:07.5]} 8...
a6 {[%clk 0:03:05.2]} 9. Nc3 {[%clk 0:03:09]} 9... Be7 {[%clk 0:03:06.5]} 10. e4
{[%clk 0:03:10.4]} 10... O-O {[%clk 0:03:07.3]} 11. d4 {[%clk 0:03:11.8]} 11...
cxd4 {[%clk 0:03:08.2]} 12. Nxd4 {[%clk 0:03:13.2]} 12... Qc7 {[%clk 0:03:09.4]}
13. Rc1 {[%clk 0:03:12.9]} 13... Rfe8 {[%clk 0:03:09.6]} 14. h3 {[%clk 0:03:13]}
14... Rf8 {[%clk 0:03:08.1]} 15. f4 {[%clk 0:03:09.4]} 15... Rad8 {[%clk
0:03:06.6]} 16. Kh2 {[%clk 0:03:07]} 16... h5 {[%clk 0:03:05.9]} 17. Qe2 {[%clk
0:03:01.7]} 17... Rfe8 {[%clk 0:03:06.4]} 18. Nf3 {[%clk 0:02:57.6]} 18... Nc5
{[%clk 0:03:02.1]} 19. Ng5 {[%clk 0:02:39.5]} 19... g6 {[%clk 0:02:52.9]} 20.
Rcd1 {[%clk 0:02:39]} 20... Nh7 {[%clk 0:02:42.8]} 21. Nxh7 {[%clk 0:02:36.6]}
21... Kxh7 {[%clk 0:02:44.7]} 22. Qe3 {[%clk 0:02:33.3]} 22... Bf6 {[%clk
0:02:42.3]} 23. Na4 {[%clk 0:02:22]} 23... Bxb2 {[%clk 0:02:39.6]} 24. Nxb2
{[%clk 0:02:23.9]} 24... f5 {[%clk 0:02:28.5]} 25. exf5 {[%clk 0:02:17.3]} 25...
exf5 {[%clk 0:02:29.5]} 26. Qf2 {[%clk 0:02:17]} 26... Ne4 {[%clk 0:02:27.3]}
27. Bxe4 {[%clk 0:02:01.3]} 27... Bxe4 {[%clk 0:02:19.1]} 28. Rc1 {[%clk
0:01:29]} 28... Qc5 {[%clk 0:02:12.1]} 29. Re2 {[%clk 0:01:14.3]} 29... Kg7
{[%clk 0:02:00.1]} 30. Na4 {[%clk 0:01:14.2]} 30... Qxf2+ {[%clk 0:01:58.8]} 31.
Rxf2 {[%clk 0:01:16.1]} 31... b5 {[%clk 0:01:54.3]} 32. cxb5 {[%clk 0:01:07.5]}
32... axb5 {[%clk 0:01:55.2]} 33. Rc7+ {[%clk 0:01:07.3]} 33... Kf6 {[%clk
0:01:51.5]} 34. Nc3 {[%clk 0:01:07.4]} 34... b4 {[%clk 0:01:46.7]} 35. Nb5
{[%clk 0:01:08.2]} 35... Re7 {[%clk 0:01:43.4]} 36. Rc4 {[%clk 0:00:58.2]} 36...
Bd3 {[%clk 0:01:37.3]} 37. Rxb4 {[%clk 0:00:58.6]} 37... Rb8 {[%clk 0:01:36.9]}
38. a4 {[%clk 0:00:57.4]} 38... Reb7 {[%clk 0:01:35.8]} 39. Rd2 {[%clk
0:00:57.5]} 39... Bxb5 {[%clk 0:01:35.9]} 40. axb5 {[%clk 0:00:58.1]} 40... Rxb5
{[%clk 0:01:34]} 41. Rxb5 {[%clk 0:00:58.7]} 41... Rxb5 {[%clk 0:01:34.4]} 42.
Rxd6+ {[%clk 0:01:00.4]} 42... Kf7 {[%clk 0:01:32.9]} 43. Rd3 {[%clk 0:01:01.9]}
43... Rb4 {[%clk 0:01:32.9]} 44. Kg2 {[%clk 0:01:03]} 44... Ke6 {[%clk
0:01:34.2]} 45. Kf3 {[%clk 0:01:04.5]} 45... Kf6 {[%clk 0:01:33.6]} 46. Ke3
{[%clk 0:01:05.9]} 46... Ke6 {[%clk 0:01:33.8]} 47. Kd2 {[%clk 0:01:06.2]} 47...
h4 {[%clk 0:01:35]} 48. Kc3 {[%clk 0:00:51.1]} 48... Re4 {[%clk 0:01:33.4]} 49.
b4 {[%clk 0:00:47]} 49... hxg3 {[%clk 0:01:25.1]} 50. Rxg3 {[%clk 0:00:48.9]}
50... Rxf4 {[%clk 0:01:23.4]} 51. Rxg6+ {[%clk 0:00:49.9]} 51... Kd5 {[%clk
0:01:25]} 52. Rg3 {[%clk 0:00:46.7]} 52... Rc4+ {[%clk 0:01:24]} 53. Kb3 {[%clk
0:00:47.1]} 53... Rc1 {[%clk 0:01:14]} 54. Rg8 {[%clk 0:00:34.2]} 54... f4
{[%clk 0:01:11]} 55. Rf8 {[%clk 0:00:34.7]} 55... Rf1 {[%clk 0:01:03.7]} 56. h4
{[%clk 0:00:35]} 56... f3 {[%clk 0:01:03.6]} 57. Ka4 {[%clk 0:00:33.7]} 57...
Kc4 {[%clk 0:00:55.7]} 58. h5 {[%clk 0:00:30.5]} 58... Ra1# {[%clk 0:00:55.2]}
0-1